lending/lending_fUSD_20240111
["ID","MTS","AMOUNT","RATE_DAILY","PERIOD"]
[311208452,1704982303909,-500.0,0.00040273,4]
[311208453,1704982303919,-603.03,0.00040273,4]
[311208454,1704982303929,-500.0,0.00040273,4]
[311208455,1704982303938,-500.0,0.00040273,4]
[311208456,1704982303948,-500.0,0.00040273,4]
[311208457,1704982303958,-500.0,0.00040273,4]
[311208458,1704982303968,-500.0,0.00040273,4]
[311208459,1704982303978,-500.0,0.00040273,4]
[311208460,1704982303987,-500.0,0.00040273,4]
[311208461,1704982303997,-500.0,0.00040273,4]
[311208462,1704982304006,-500.0,0.00040273,4]
[311208463,1704982304016,-500.0,0.00040273,4]
[311208464,1704982304026,-500.0,0.00040273,4]
[311208465,1704982304035,-500.0,0.00040273,4]
[311208466,1704982304045,-500.0,0.00040273,4]
[311208467,1704982304055,-500.0,0.00040273,4]
[311208468,1704982304064,-500.0,0.00040273,4]
[311208469,1704982304074,-500.0,0.00040273,4]
[311208470,1704982304084,-500.0,0.00040273,4]
[311208471,1704982304094,-500.0,0.00040273,4]
[311208472,1704982304105,-500.0,0.00040273,4]
[311208473,1704982304115,-745.39,0.00040273,4]
[311208474,1704982304125,-500.0,0.00040273,4]
[311208475,1704982304134,-500.0,0.00040273,4]
[311208476,1704982304144,-500.0,0.00040273,4]
[311208477,1704982304154,-2237.51,0.00040273,5]
[311208478,1704982304164,-500.0,0.00040273,4]
[311208479,1704982304174,-500.0,0.00040273,4]
[311208480,1704982304184,-500.0,0.00040273,4]
[311208481,1704982304194,-500.0,0.00040273,4]
[311208482,1704982304204,-500.0,0.00040273,4]
[311208483,1704982304214,-500.0,0.00040273,4]
[311208484,1704982304223,-500.0,0.00040273,4]
[311208485,1704982304233,-500.0,0.00040273,4]
[311208486,1704982304242,-500.0,0.00040273,4]
[311208487,1704982304251,-405.43211875,0.00040273,4]
[311208488,1704982304261,-500.0,0.00040273,4]
[311208489,1704982304270,-500.0,0.00040273,4]
[311208490,1704982304283,-500.0,0.00040273,4]
[311208491,1704982304293,-556.57,0.00040273,4]
[311208492,1704982304303,-500.0,0.00040273,4]
[311208493,1704982304312,-500.0,0.00040273,4]
[311208494,1704982304323,-500.0,0.00040273,4]
[311208495,1704982304332,-500.0,0.00040273,4]
[311208496,1704982304342,-500.0,0.00040273,4]
[311208497,1704982304351,-801.55,0.00040273,4]
[311208498,1704982304362,-500.0,0.00040273,4]
[311208499,1704982304372,-500.0,0.00040273,4]
[311208500,1704982304382,-627.59,0.00040273,4]
[311208501,1704982304391,-500.0,0.00040273,4]
[311208502,1704982304401,-500.0,0.00040273,4]
[311208503,1704982304411,-500.0,0.00040273,4]
[311208504,1704982304421,-525.09,0.00040273,4]
[311208505,1704982304431,-500.0,0.00040273,4]
[311208506,1704982304441,-500.0,0.00040273,4]
[311208507,1704982304452,-500.0,0.00040273,4]
[311208508,1704982304461,-394.66649777,0.00040273,4]
[311208509,1704982304471,-500.0,0.00040273,4]
[311208510,1704982304481,-2697.57,0.00040273,4]
[311208511,1704982304491,-940.78,0.00040273,4]
[311208512,1704982304501,-500.0,0.00040273,4]
[311208513,1704982304510,-500.0,0.00040273,4]
[311208514,1704982304520,-500.0,0.00040273,4]
[311208515,1704982304531,-500.0,0.00040273,2]
[311208516,1704982304541,-500.0,0.00040273,4]
[311208517,1704982304551,-500.0,0.00040273,4]
[311208518,1704982304561,-1527.86915842,0.00040284,5]
[311208519,1704982304585,-111.25431098,0.00040284,5]
[311208520,1704982304595,-413.9,0.00040303,2]
[311208521,1704982304606,-492.91,0.00040349,15]
[311208522,1704982304615,-571.58907072,0.0004038,21]
[311208523,1704982304624,-483.95468688,0.0004038,21]
[311208524,1704982304636,-27.77163735,0.0004038,21]
[311208525,1704982304647,-1546.62489805,0.00040421,30]
[311208526,1704982304660,-825.44398867,0.00040421,30]
[311208527,1704982304672,-758.42198697,0.00040421,30]
[311208528,1704982304685,-2448.50912631,0.00040421,30]
[311208529,1704982304694,-4180.12949188,0.000405,2]
[311208530,1704982304706,-819.87355501,0.000405,2]
[311208531,1704982304716,-203.0,0.00040533,10]
[311208532,1704982304727,-158.71229651,0.00040544,2]
[311208533,1704982304736,-150.0,0.00040546,3]
[311208534,1704982304747,-150.0,0.00040546,3]
[311208535,1704982304756,-334.18259324,0.00040547,4]
[311208536,1704982304765,-433.98,0.00040547,4]
[311208537,1704982304775,-627.73808874,0.00040547,4]
[311208538,1704982304784,-500.0,0.00040547,4]
[311208539,1704982304794,-500.0,0.00040547,4]
[311208540,1704982304803,-500.0,0.00040547,4]
[311208541,1704982304813,-500.0,0.00040547,4]
[311208542,1704982304823,-500.0,0.00040547,4]
[311208543,1704982304832,-488.74,0.00040547,4]
[311208544,1704982304841,-500.0,0.00040547,4]
[311208545,1704982304851,-500.0,0.00040547,4]
[311208546,1704982304861,-500.0,0.00040547,4]
[311208547,1704982304870,-500.0,0.00040547,4]
[311208548,1704982304880,-500.0,0.00040547,4]
[311208549,1704982304889,-500.0,0.00040547,4]
[311208550,1704982304899,-219.30111877,0.00040547,4]
[311208551,1704982304909,-500.0,0.00040547,4]
[311208552,1704982304918,-447.82211644,0.00040547,4]
[311208553,1704982304931,-52.17788356,0.00040547,4]
[311208554,1704982304941,-509.9216786,0.00040547,4]
[311208555,1704982304951,-500.0,0.00040547,4]
[311208556,1704982304961,-500.0,0.00040547,4]
[311208557,1704982304970,-500.0,0.00040547,4]
[311208558,1704982304980,-502.09356565,0.00040547,4]
[311208559,1704982304990,-500.0,0.00040547,4]
[311208560,1704982304999,-500.0,0.00040547,4]
[311208561,1704982305009,-500.0,0.00040547,4]
[311208562,1704982305019,-500.0,0.00040547,4]
[311208563,1704982305030,-500.0,0.00040547,4]
[311208564,1704982305040,-500.0,0.00040547,4]
[311208565,1704982305050,-409.05445179,0.00040547,4]
[311208566,1704982305062,-90.94554821,0.00040547,4]
[311208567,1704982305072,-553.03601276,0.00040547,4]
[311208568,1704982305082,-500.0,0.00040547,4]
[311208569,1704982305092,-259.82640819,0.00040547,4]
[311208570,1704982305105,-240.17359181,0.00040547,4]
[311208571,1704982305114,-500.0,0.00040547,4]
[311208572,1704982305124,-500.0,0.00040547,4]
[311208573,1704982305134,-500.0,0.00040547,4]
[311208574,1704982305143,-500.0,0.00040547,4]
[311208575,1704982305153,-500.0,0.00040547,4]
[311208576,1704982305162,-500.0,0.00040547,4]
[311208577,1704982305171,-500.0,0.00040547,4]
[311208578,1704982305181,-500.0,0.00040547,4]
[311208579,1704982305191,-500.0,0.00040547,4]
[311208580,1704982305200,-500.0,0.00040547,4]
[311208581,1704982305210,-475.17,0.00040547,4]
[311208582,1704982305220,-500.0,0.00040547,4]
[311208583,1704982305230,-500.0,0.00040547,4]
[311208584,1704982305241,-500.0,0.00040547,4]
[311208585,1704982305252,-500.0,0.00040547,7]
[311208586,1704982305261,-500.0,0.00040547,4]
[311208587,1704982305271,-500.0,0.00040547,4]
[311208588,1704982305282,-500.0,0.00040547,4]
[311208589,1704982305293,-500.0,0.00040547,4]
[311208590,1704982305303,-500.0,0.00040547,4]
[311208591,1704982305313,-474.93575558,0.00040547,4]
[311208592,1704982305323,-500.0,0.00040547,4]
[311208593,1704982305334,-500.0,0.00040547,4]
[311208594,1704982305344,-500.0,0.00040547,4]
[311208595,1704982305354,-500.0,0.00040547,4]
[311208596,1704982305364,-500.0,0.00040547,4]
[311208597,1704982305375,-500.0,0.00040547,4]
[311208598,1704982305385,-93.63305312,0.00040547,4]
[311208599,1704982305811,-234.80481503,0.00024999,2]
[311208600,1704982305821,-74.4432445,0.00024999,2]
[311208601,1704982305833,-80.5567555,0.00024999,2]
[311208602,1704982305843,-164.61605207,0.00024999,2]
[311208603,1704982305852,-3209.21053169,0.00028186,2]
[311208604,1704982305864,-358.30990506,0.00028186,2]
[311208605,1704982305906,-19923.64384328,0.00028186,2]
[311208606,1704982305916,-5270.32227151,0.00028186,2]
[311208607,1704982305925,-1499.45986927,0.00028186,2]
[311208608,1704982305935,-2082.34850931,0.0002998,7]
[311208609,1704982305945,-500.0,0.00039178,4]
[311208610,1704982305954,-500.0,0.00039178,4]
[311208611,1704982305964,-500.0,0.00039178,4]
[311208612,1704982305973,-500.0,0.00039178,4]
[311208613,1704982305983,-500.0,0.00039452,4]
[311208614,1704982305993,-479.79,0.00039726,4]
[311208615,1704982306002,-406.36694688,0.00040547,4]
[311208616,1704982306012,-500.0,0.00040547,4]
[311208617,1704982306021,-500.0,0.00040547,4]
[311208618,1704982306030,-500.0,0.00040547,4]
[311208619,1704982306040,-502.26,0.00040547,4]
[311208620,1704982306050,-500.0,0.00040547,4]
[311208621,1704982306060,-294.88,0.00040547,4]
[311208622,1704982306070,-500.0,0.00040547,4]
[311208623,1704982306079,-500.0,0.00040547,4]
[311208624,1704982306089,-500.0,0.00040547,4]
[311208625,1704982306099,-500.0,0.00040547,4]
[311208626,1704982306111,-500.0,0.00040547,4]
[311208627,1704982306120,-335.78774295,0.00040547,4]
[311208628,1704982306133,-164.21225705,0.00040547,4]
[311208629,1704982306142,-310.97304966,0.00040547,4]
[311208630,1704982306154,-189.02695034,0.00040547,4]
[311208631,1704982306163,-500.0,0.00040547,4]
[311208632,1704982306173,-500.0,0.00040547,4]
[311208633,1704982306182,-500.0,0.00040547,4]
[311208634,1704982306192,-500.0,0.00040547,4]
[311208635,1704982306202,-490.06,0.00040547,4]
[311208636,1704982306211,-500.0,0.00040547,4]
[311208637,1704982306221,-500.0,0.00040547,4]
[311208638,1704982306231,-439.17,0.00040547,4]
[311208639,1704982306240,-245.66,0.00040547,4]
[311208640,1704982306249,-500.0,0.00040547,4]
[311208641,1704982306259,-500.0,0.00040547,4]
[311208642,1704982306269,-500.0,0.00040547,4]
[311208643,1704982306281,-500.0,0.00040547,4]
[311208644,1704982306291,-479.35424498,0.00040547,4]
[311208645,1704982306300,-436.34,0.00040547,4]
[311208646,1704982306309,-500.0,0.00040547,4]
[311208647,1704982306318,-500.0,0.00040547,4]
[311208648,1704982306328,-500.0,0.00040547,4]
[311208649,1704982306337,-500.0,0.00040547,4]
[311208650,1704982306346,-500.0,0.00040547,4]
[311208651,1704982306357,-500.0,0.00040547,4]
[311208652,1704982306366,-500.0,0.00040547,4]
[311208653,1704982306375,-500.0,0.00040547,4]
[311208654,1704982306385,-500.0,0.00040547,4]
[311208655,1704982306394,-500.0,0.00040547,4]
[311208656,1704982306403,-500.0,0.00040547,4]
[311208657,1704982306412,-310.96,0.00040547,4]
[311208658,1704982306421,-500.0,0.00040547,4]
[311208659,1704982306431,-500.0,0.00040547,4]
[311208660,1704982306440,-187.54480471,0.00040547,4]
[311208661,1704982306457,-225.51,0.00039178,4]
[311208662,1704982306466,-75.88843192,0.00040547,4]
[311208663,1704982306478,-236.56676337,0.00040547,4]
[311208664,1704982306487,-500.0,0.00040547,4]
[311208665,1704982306497,-525.42,0.00040547,4]
[311208666,1704982306506,-500.0,0.00040547,4]
[311208667,1704982306515,-116.85323663,0.00040547,4]
[311208668,1704982306527,-383.14676337,0.00040547,4]
[311208669,1704982306537,-500.0,0.00040547,4]
[311208670,1704982306547,-386.37307467,0.00040547,4]
[311208671,1704982306560,-113.62692533,0.00040547,4]
[311208672,1704982306569,-500.0,0.00040547,4]
[311208673,1704982306579,-500.0,0.00040547,4]
[311208674,1704982306589,-279.47,0.00040547,4]
[311208675,1704982306599,-500.0,0.00040547,4]
[311208676,1704982306612,-500.0,0.00040547,4]
[311208677,1704982306622,-500.0,0.00040547,4]
[311208678,1704982306632,-500.0,0.00040547,4]
[311208679,1704982306643,-500.0,0.00040547,4]
[311208680,1704982306653,-500.0,0.00040547,4]
[311208681,1704982306664,-989.84,0.00040547,4]
[311208682,1704982306675,-500.0,0.00040547,4]
[311208683,1704982306686,-500.0,0.00040547,4]
[311208684,1704982306698,-560.2,0.00040547,4]
[311208685,1704982306708,-500.0,0.00040547,4]
[311208686,1704982306718,-500.0,0.00040547,4]
[311208687,1704982306728,-500.0,0.00040547,4]
[311208688,1704982306738,-500.0,0.00040547,4]
[311208689,1704982306748,-950.98,0.00040547,4]
[311208690,1704982306759,-500.0,0.00040547,4]
[311208691,1704982306768,-500.0,0.00040547,4]
[311208692,1704982306778,-1529.32,0.00040547,4]
[311208693,1704982306788,-500.0,0.00040547,4]
[311208694,1704982306798,-201.99,0.00040547,4]
[311208695,1704982306808,-479.64966834,0.00040547,4]
[311208696,1704982306818,-500.0,0.00040547,4]
[311208697,1704982306827,-500.0,0.00040547,4]
[311208698,1704982306837,-500.0,0.00040547,4]
[311208699,1704982306846,-500.0,0.00040547,4]
[311208700,1704982306857,-500.0,0.00040547,4]
[311208701,1704982306867,-500.0,0.00040547,4]
[311208702,1704982306876,-500.0,0.00040547,4]
[311208703,1704982306885,-500.0,0.00040547,4]
[311208704,1704982306894,-550.14,0.00040547,4]
[311208705,1704982306904,-1104.09,0.00040547,4]
[311208706,1704982306914,-500.0,0.00040547,4]
[311208707,1704982306923,-500.0,0.00040547,4]
[311208708,1704982306933,-500.0,0.00040547,4]
[311208709,1704982306943,-500.0,0.00040547,4]
[311208710,1704982306953,-500.0,0.00040547,4]
[311208711,1704982306963,-500.0,0.00040547,4]
[311208712,1704982306973,-500.0,0.00040547,4]
[311208713,1704982306983,-500.0,0.00040547,4]
[311208714,1704982306993,-895.51,0.00040547,4]
[311208715,1704982307002,-500.0,0.00040547,4]
[311208716,1704982307011,-500.0,0.00040547,4]
[311208717,1704982307021,-500.0,0.00040547,4]
[311208718,1704982307030,-622.07,0.00040547,4]
[311208719,1704982307041,-500.0,0.00040547,4]
[311208720,1704982307051,-571.07,0.00040547,4]
[311208721,1704982307061,-500.0,0.00040547,4]
[311208722,1704982307070,-500.0,0.00040547,4]
[311208723,1704982307080,-500.0,0.00040547,4]
[311208724,1704982307089,-500.0,0.00040547,4]
[311208725,1704982307099,-500.0,0.00040547,4]
[311208726,1704982307110,-500.0,0.00040547,4]
[311208727,1704982307119,-500.0,0.00040547,4]
[311208728,1704982307129,-500.0,0.00040547,4]
[311208729,1704982307138,-500.0,0.00040547,4]
[311208730,1704982307149,-500.0,0.00040547,4]
[311208731,1704982307158,-500.0,0.00040547,4]
[311208732,1704982307168,-500.0,0.00040547,4]
[311208733,1704982307178,-500.0,0.00040547,4]
[311208734,1704982307188,-500.0,0.00040547,5]
[311208735,1704982307197,-271.06,0.00040547,4]
[311208736,1704982307207,-500.0,0.00040547,4]
[311208737,1704982307217,-500.0,0.00040547,4]
[311208738,1704982307226,-583.68,0.00040547,4]
[311208739,1704982307235,-500.0,0.00040547,4]
[311208740,1704982307245,-500.0,0.00040547,4]
[311208741,1704982307255,-500.0,0.00040547,4]
[311208742,1704982307264,-1678.22,0.00040547,4]
[311208743,1704982307275,-500.0,0.00040547,4]
[311208744,1704982307284,-500.0,0.00040547,4]
[311208745,1704982307294,-500.0,0.00040547,4]
[311208746,1704982307303,-500.0,0.00040547,4]
[311208747,1704982307313,-500.0,0.00040547,4]
[311208748,1704982307323,-500.0,0.00040547,4]
[311208749,1704982307332,-500.0,0.00040547,4]
[311208750,1704982307342,-603.03,0.00040547,4]
[311208751,1704982307352,-500.0,0.00040547,4]
[311208752,1704982307362,-500.0,0.00040547,4]
[311208753,1704982307372,-500.0,0.00040547,4]
[311208754,1704982307381,-500.0,0.00040547,4]
[311208755,1704982307391,-500.0,0.00040547,4]
[311208756,1704982307400,-189.83,0.00040547,4]
[311208757,1704982307411,-500.0,0.00040547,4]
[311208758,1704982307420,-566.7,0.00040547,4]
[311208759,1704982307430,-500.0,0.00040547,4]
[311208760,1704982307441,-500.0,0.00040547,4]
[311208761,1704982307451,-500.0,0.00040547,4]
[311208762,1704982307460,-500.0,0.00040547,4]
[311208763,1704982307470,-500.0,0.00040547,4]
[311208764,1704982307479,-500.0,0.00040547,4]
[311208765,1704982307489,-500.0,0.00040547,4]
[311208766,1704982307498,-500.0,0.00040547,4]
[311208767,1704982307509,-500.0,0.00040547,4]
[311208768,1704982307519,-745.39,0.00040547,4]
[311208769,1704982307528,-500.0,0.00040547,4]
[311208770,1704982307537,-2237.51,0.00040547,5]
[311208771,1704982307547,-500.0,0.00040547,4]
[311208772,1704982307556,-500.0,0.00040547,4]
[311208773,1704982307566,-500.0,0.00040547,4]
[311208774,1704982307576,-500.0,0.00040547,4]
[311208775,1704982307585,-403.56,0.00040547,4]
[311208776,1704982307595,-174.94,0.00040547,4]
[311208777,1704982307605,-500.0,0.00040547,4]
[311208778,1704982307614,-500.0,0.00040547,4]
[311208779,1704982307623,-500.0,0.00040547,4]
[311208780,1704982307632,-185.6,0.00040547,4]
[311208781,1704982307642,-500.0,0.00040547,4]
[311208782,1704982307651,-500.0,0.00040547,4]
[311208783,1704982307660,-801.55,0.00040547,4]
[311208784,1704982307669,-328.6858616,0.00040547,4]
[311208785,1704982307678,-500.0,0.00040547,4]
[311208786,1704982307687,-500.0,0.00040547,4]
[311208787,1704982307697,-500.0,0.00040547,4]
[311208788,1704982307707,-500.0,0.00040547,4]
[311208789,1704982307717,-500.0,0.00040547,4]
[311208790,1704982307728,-500.0,0.00040547,4]
[311208791,1704982307739,-500.0,0.00040547,4]
[311208792,1704982307749,-940.78,0.00040547,4]
[311208793,1704982307758,-2697.57,0.00040547,4]
[311208794,1704982307767,-500.0,0.00040547,4]
[311208795,1704982307778,-500.0,0.00040547,4]
[311208796,1704982307787,-343.00261892,0.00040561,3]
[311208797,1704982307797,-150.0,0.00040643,2]
[311208798,1704982307807,-150.0,0.00040643,2]
[311208799,1704982307816,-150.0,0.00040661,2]
[311208800,1704982307826,-150.0,0.00040661,2]
[311208801,1704982307835,-6839.50522379,0.00040685,2]
[311208802,1704982307845,-19938.41,0.000407,7]
[311208803,1704982307856,-4180.0,0.000407,81]
[311208804,1704982307866,-479.5,0.00040733,2]
[311208805,1704982307875,-2048.0,0.00040755,10]
[311208806,1704982307885,-158.71511871,0.00040755,2]
[311208807,1704982307895,-13856.3,0.000408,7]
[311208808,1704982307904,-2396.82,0.000408,7]
[311208809,1704982307913,-500.0,0.00040821,4]
[311208810,1704982307922,-584.82,0.00040821,4]
[311208811,1704982307932,-500.0,0.00040821,4]
[311208812,1704982307941,-500.0,0.00040821,4]
[311208813,1704982307950,-500.0,0.00040821,4]
[311208814,1704982307960,-500.0,0.00040821,4]
[311208815,1704982308005,-500.0,0.00040821,4]
[311208816,1704982308014,-500.0,0.00040821,4]
[311208817,1704982308023,-500.0,0.00040821,4]
[311208818,1704982308033,-500.0,0.00040821,4]
[311208819,1704982308043,-500.0,0.00040821,4]
[311208820,1704982308052,-500.0,0.00040821,4]
[311208821,1704982308062,-500.0,0.00040821,4]
[311208822,1704982308071,-500.0,0.00040821,4]
[311208823,1704982308080,-500.0,0.00040821,4]
[311208824,1704982308089,-500.0,0.00040821,4]
[311208825,1704982308099,-500.0,0.00040821,4]
[311208826,1704982308109,-234.81063179,0.00040821,4]
[311208827,1704982308118,-229.40661533,0.00040821,4]
[311208828,1704982308127,-500.0,0.00040821,7]
[311208829,1704982308136,-500.0,0.00040821,4]
[311208830,1704982308146,-500.0,0.00040821,4]
[311208831,1704982308155,-476.4,0.00040821,4]
[311208832,1704982308164,-500.0,0.00040821,4]
[311208833,1704982308173,-500.0,0.00040821,4]
[311208834,1704982308182,-627.53,0.00040821,4]
[311208835,1704982308191,-500.0,0.00040821,4]
[311208836,1704982308200,-500.0,0.00040821,4]
[311208837,1704982308210,-500.0,0.00040821,4]
[311208838,1704982308219,-500.0,0.00040821,4]
[311208839,1704982308228,-500.0,0.00040821,4]
[311208840,1704982308237,-226.74,0.00040821,4]
[311208841,1704982308246,-500.0,0.00040821,4]
[311208842,1704982308254,-287.25,0.00040821,4]
[311208843,1704982308265,-500.0,0.00040821,4]
[311208844,1704982308275,-500.0,0.00040821,4]
[311208845,1704982308284,-500.0,0.00040821,4]
[311208846,1704982308293,-500.0,0.00040821,4]
[311208847,1704982308302,-500.0,0.00040821,4]
[311208848,1704982308312,-325.9,0.00040821,4]
[311208849,1704982308320,-444.92,0.00040821,4]
[311208850,1704982308330,-500.0,0.00040821,4]
[311208851,1704982308338,-500.0,0.00040821,4]
[311208852,1704982308348,-500.0,0.00040821,4]
[311208853,1704982308359,-407.85,0.00040821,4]
[311208854,1704982308368,-500.0,0.00040821,4]
[311208855,1704982308377,-500.0,0.00040821,4]
[311208856,1704982308387,-500.0,0.00040821,4]
[311208857,1704982308396,-378.53,0.00040821,4]
[311208858,1704982308406,-500.0,0.00040821,4]
[311208859,1704982308415,-159.64,0.00040821,4]
[311208860,1704982308426,-989.84,0.00040821,4]
[311208861,1704982308436,-500.0,0.00040821,4]
[311208862,1704982308446,-500.0,0.00040821,4]
[311208863,1704982308455,-950.98,0.00040821,4]
[311208864,1704982308464,-500.0,0.00040821,4]
[311208865,1704982308474,-500.0,0.00040821,4]
[311208866,1704982308483,-1529.32,0.00040821,4]
[311208867,1704982308492,-500.0,0.00040821,4]
[311208868,1704982308502,-212.44,0.00040821,4]
[311208869,1704982308511,-554.68,0.00040821,4]
[311208870,1704982308520,-500.0,0.00040821,4]
[311208871,1704982308530,-500.0,0.00040821,4]
[311208872,1704982308541,-500.0,0.00040821,4]
[311208873,1704982308551,-500.0,0.00040821,4]
[311208874,1704982308560,-500.0,0.00040821,4]
[311208875,1704982308570,-550.14,0.00040821,4]
[311208876,1704982308579,-1104.09,0.00040821,4]
[311208877,1704982308588,-500.0,0.00040821,4]
[311208878,1704982308597,-196.78,0.00040821,4]
[311208879,1704982308607,-500.0,0.00040821,4]
[311208880,1704982308615,-500.0,0.00040821,4]
[311208881,1704982308624,-500.0,0.00040821,4]
[311208882,1704982308634,-500.0,0.00040821,4]
[311208883,1704982308643,-500.0,0.00040821,4]
[311208884,1704982308652,-895.51,0.00040821,4]
[311208885,1704982308661,-500.0,0.00040821,4]
[311208886,1704982308672,-500.0,0.00040821,4]
[311208887,1704982308682,-500.0,0.00040821,4]
[311208888,1704982308692,-500.0,0.00040821,4]
[311208889,1704982308702,-500.0,0.00040821,4]
[311208890,1704982308711,-500.0,0.00040821,4]
[311208891,1704982308720,-500.0,0.00040821,4]
[311208892,1704982308729,-500.0,0.00040821,4]
[311208893,1704982308739,-612.14,0.00040821,4]
[311208894,1704982308748,-500.0,0.00040821,4]
[311208895,1704982308758,-500.0,0.00040821,4]
[311208896,1704982308767,-424.87,0.00040821,5]
[311208897,1704982308776,-374.58675533,0.00040821,4]
[311208898,1704982308786,-500.0,0.00040821,4]
[311208899,1704982308796,-583.68,0.00040821,4]
[311208900,1704982308806,-500.0,0.00040821,4]
[311208901,1704982308815,-500.0,0.00040821,4]
[311208902,1704982308826,-1678.22,0.00040821,4]
[311208903,1704982308835,-500.0,0.00040821,4]
[311208904,1704982308845,-500.0,0.00040821,4]
[311208905,1704982308855,-500.0,0.00040821,4]
[311208906,1704982308865,-500.0,0.00040821,4]
[311208907,1704982308875,-500.0,0.00040821,4]
[311208908,1704982308885,-500.0,0.00040821,4]
[311208909,1704982308894,-603.03,0.00040821,4]
[311208910,1704982308903,-500.0,0.00040821,4]
[311208911,1704982308913,-500.0,0.00040821,4]
[311208912,1704982308923,-500.0,0.00040821,4]
[311208913,1704982308932,-500.0,0.00040821,4]
[311208914,1704982308942,-500.0,0.00040821,4]
[311208915,1704982308951,-500.0,0.00040821,4]
[311208916,1704982308961,-500.0,0.00040821,4]
[311208917,1704982308971,-500.0,0.00040821,4]
[311208918,1704982308980,-500.0,0.00040821,4]
[311208919,1704982308989,-500.0,0.00040821,4]
[311208920,1704982308999,-500.0,0.00040821,4]
[311208921,1704982309009,-500.0,0.00040821,4]
[311208922,1704982309019,-500.0,0.00040821,4]
[311208923,1704982309029,-500.0,0.00040821,4]
[311208924,1704982309039,-745.39,0.00040821,4]
[311208925,1704982309049,-500.0,0.00040821,4]
[311208926,1704982309058,-2237.51,0.00040821,5]
[311208927,1704982309069,-500.0,0.00040821,4]
[311208928,1704982309078,-500.0,0.00040821,4]
[311208929,1704982309088,-500.0,0.00040821,4]
[311208930,1704982309098,-500.0,0.00040821,4]
[311208931,1704982309109,-500.0,0.00040821,4]
[311208932,1704982309119,-500.0,0.00040821,4]
[311208933,1704982309128,-801.55,0.00040821,4]
[311208934,1704982309137,-500.0,0.00040821,4]
[311208935,1704982309147,-500.0,0.00040821,4]
[311208936,1704982309156,-500.0,0.00040821,4]
[311208937,1704982309167,-500.0,0.00040821,4]
[311208938,1704982309178,-500.0,0.00040821,4]
[311208939,1704982309187,-500.0,0.00040821,4]
[311208940,1704982309197,-500.0,0.00040821,4]
[311208941,1704982309207,-940.78,0.00040821,4]
[311208942,1704982309216,-2697.57,0.00040821,4]
[311208943,1704982309226,-500.0,0.00040821,4]
[311208944,1704982309235,-3362.4705808,0.00040838,30]
[311208945,1704982309251,-2216.5294192,0.00040838,30]
[311208946,1704982309261,-200.0,0.0004084,20]
[311208947,1704982309272,-800.0,0.0004084,10]
[311208948,1704982309281,-200.0,0.0004084,15]
[311208949,1704982309291,-3000.0,0.000409,27]
[311208950,1704982309300,-2010.5,0.000409,2]
[311208951,1704982309309,-315.36,0.000409,2]